bitfinex-derivatives/quotes_ETHF0:USTF0_20250308
["timestamp","ask_amount","ask_price","bid_price","bid_amount"]
[1741435273028,0.00694363,2145.4,2145.1,0.664]
[1741435273230,0.00694363,2145.4,2145.2,2.068]
[1741435274332,0.00694363,2145.4,2144.9,3.85699872]
[1741435274532,0.00694363,2145.4,2144.9,4.49739872]
[1741435275429,0.65554363,2145.4,2144.9,4.49739872]
[1741435275629,0.6137,2145.3,2144.9,4.49739872]
[1741435276034,0.6632,2145.2,2144.9,4.49739872]
[1741435276830,3.871,2145.2,2144.9,3.85519872]
[1741435277037,3.871,2145.2,2144.9,3.21479872]
[1741435277635,0.6632,2145.2,2144.9,3.21479872]
[1741435278135,0.6632,2145.2,2145.0,0.6098]
[1741435278828,0.00694363,2145.4,2145.1,0.643]
[1741435279032,0.21387745,3119.3,2145.1,0.643]
[1741435279033,3.2078,2145.9,2145.2,5.2848]
[1741435279231,3.2078,2145.9,2145.5,3.2078]
[1741435279428,3.2078,2145.9,2145.6,2.079]
[1741435280334,3.2078,2145.9,2145.6,2.6995]
[1741435281133,3.2078,2146.9,2145.8,4.13998]
[1741435281330,0.6183,2146.8,2146.3,3.2078]
[1741435281530,0.6183,2146.8,2146.3,5.2908]
[1741435283631,0.6183,2146.8,2146.3,2.083]
[1741435283932,0.6183,2146.8,2146.1,2.085]
[1741435283933,3.2078,2146.6,2146.1,2.085]
[1741435284131,0.6183,2146.5,2146.1,2.085]
[1741435284337,1.2855,2146.5,2146.1,2.085]
[1741435284836,3.2078,2146.3,2145.8,2.085]
[1741435285037,0.64,2146.2,2145.8,2.085]
[1741435285229,0.6183,2146.1,2145.8,2.085]
[1741435285425,0.64,2146.2,2145.8,2.085]
[1741435285631,0.6672,2146.5,2146.1,3.2078]
[1741435285834,0.6672,2146.5,2146.2,2.099]
[1741435286030,0.6672,2146.5,2146.4,3.2078]
[1741435286634,1.2583,2146.8,2146.4,3.2078]
[1741435290736,0.64,2146.8,2146.4,3.2078]
[1741435291835,1.2529,2146.8,2146.4,3.2078]
[1741435293140,2.78315061,2146.8,2146.4,3.2078]
[1741435293335,3.2078,2146.6,2146.0,2.7233]
[1741435293730,0.6155,2146.5,2146.0,2.7233]
[1741435294240,0.6402,2146.4,2145.9,8.8345]
[1741435294545,0.6136,2146.3,2145.9,5.9115]
[1741435296446,3.8214,2146.3,2145.9,5.9115]
[1741435297342,3.8214,2146.3,2145.7,0.6257]
[1741435297742,3.8214,2146.3,2145.7,2.7117]
[1741435298047,3.8214,2146.3,2145.6,5.9162]
[1741435298539,3.8214,2146.3,2145.6,3.8312]
[1741435298942,0.6136,2146.3,2145.6,3.8312]
[1741435299138,0.6136,2146.3,2145.9,3.2078]
[1741435300342,0.6136,2146.3,2146.0,0.6009]
[1741435301448,0.6136,2146.3,2146.0,1.262]
[1741435302140,0.6136,2146.3,2146.0,1.9221]
[1741435302347,0.6155,2146.5,2146.0,1.9221]
[1741435302542,3.2078,2146.9,2146.2,3.2078]
[1741435302741,3.2078,2146.9,2146.5,3.2078]
[1741435302742,0.6607,2146.8,2146.5,3.2078]
[1741435303143,0.6607,2146.8,2146.6,0.6192]
[1741435303546,1.2715,2146.8,2146.6,0.6192]
[1741435304146,3.2078,2146.9,2146.6,0.6192]
[1741435304746,1.2814,2147.0,2146.6,0.6192]
[1741435305438,1.2814,2147.0,2146.3,17.49199872]
[1741435305647,3.2078,2146.9,2146.3,17.49199872]
[1741435307149,3.2078,2146.9,2146.3,2.09199872]
[1741435308645,4.7445077,2146.9,2146.3,2.09199872]
[1741435308840,4.7445077,2146.9,2146.3,0.00699872]
[1741435309646,1.2814,2147.0,2146.5,3.2078]
[1741435309849,1.2814,2147.0,2146.6,0.6506]
[1741435310347,3.2078,2146.9,2146.5,3.2078]
[1741435310551,3.2078,2146.9,2146.3,0.65759872]
[1741435310749,3.92728766,2146.9,2146.3,0.65759872]
[1741435312054,4.74480206,2146.9,2146.3,0.65759872]
[1741435313249,3.2078,2146.6,2146.3,0.00699872]
[1741435313447,1.287,2146.5,2146.3,0.00699872]
[1741435313850,2.82400206,2146.5,2146.3,0.00699872]
[1741435319256,1.287,2146.5,2146.3,0.00699872]
[1741435320258,1.287,2146.5,2146.3,0.66449872]
[1741435321964,1.287,2146.5,2146.3,0.00699872]
[1741435322558,3.2078,2146.4,2146.1,3.2078]
[1741435322858,0.629,2146.3,2146.1,3.2078]
[1741435323062,1.34848766,2146.3,2146.1,3.2078]
[1741435323258,0.629,2146.3,2145.7,3.9821]
[1741435323459,1.34848766,2146.3,2145.7,3.9821]
[1741435323658,3.2078,2146.4,2145.9,3.2078]
[1741435323858,0.00699872,2146.2,2145.9,3.2078]
[1741435325762,0.00699872,2146.2,2146.0,0.62348909]
[1741435325962,0.00699872,2146.2,2146.1,3.3783]
[1741435326164,0.00699872,2146.2,2146.1,3.9979]
[1741435329859,0.6023,2146.7,2146.1,4.62139028]
[1741435330061,0.6023,2146.7,2146.4,3.2078]
[1741435332461,0.6023,2146.7,2146.5,1.9221]
[1741435333666,0.6211,2146.8,2146.5,1.9221]
[1741435334070,0.6159,2147.2,2146.7,3.2078]
[1741435334369,1.2583,2147.1,2146.7,3.2078]
[1741435338467,1.2583,2147.1,2146.7,18.6078]
[1741435339067,1.2583,2147.1,2146.8,2.074]
[1741435340869,1.2583,2147.1,2146.7,3.2078]
[1741435340870,3.2078,2147.0,2146.0,3.2078]
[1741435341173,3.2078,2147.0,2146.1,2.7207]
[1741435341174,3.2078,2146.7,2146.1,2.7207]
[1741435341373,1.2789,2146.6,2146.1,2.7207]
[1741435341576,2.63338492,2146.6,2146.1,2.7207]
[1741435341769,2.63338492,2146.6,2145.8,0.00699872]
[1741435341770,3.45042341,2146.6,2145.8,0.00699872]
[1741435342270,3.45042341,2146.6,2145.8,15.40699872]
[1741435342873,3.2078,2146.3,2145.8,15.40699872]
[1741435343176,0.6345,2146.2,2145.8,15.40699872]
[1741435343472,1.2789,2146.1,2145.8,15.40699872]
[1741435343676,0.6439,2146.1,2146.0,3.2078]
[1741435343878,3.2078,2146.3,2146.0,3.2078]
[1741435344084,3.47349642,2146.7,2146.0,3.2078]
[1741435344583,3.47349642,2146.7,2146.1,0.6545]
[1741435345271,3.47349642,2146.7,2146.1,1.2781]
[1741435346577,2.65670383,2146.7,2146.1,1.2781]
[1741435346781,1.9377,2146.7,2146.1,1.2781]
[1741435346980,2.65659659,2146.7,2146.1,1.2781]
[1741435347576,1.9377,2146.7,2146.2,2.076]
[1741435347780,1.3027,2146.7,2146.4,3.2078]
[1741435347985,1.3027,2146.7,2146.5,1.2909]
[1741435348174,1.3027,2146.7,2146.5,0.6263]
[1741435348877,0.6674,2147.0,2146.5,0.6263]
[1741435349081,1.8763,2147.0,2146.5,0.6263]
[1741435350078,1.8763,2147.0,2146.7,3.2078]
[1741435350674,1.53527445,2147.3,2146.7,3.2078]
[1741435350868,0.6325,2147.3,2147.0,3.2078]
[1741435352375,1.2212,2147.2,2147.0,3.2078]
[1741435356781,1.53527445,2147.6,2147.0,3.2078]
[1741435357082,0.6207,2147.5,2147.4,3.2078]
[1741435359191,0.6531,2147.6,2147.4,3.2078]
[1741435359387,3.2078,2148.3,2147.5,2.07]
[1741435359590,1.2469,2148.4,2148.0,3.2078]
[1741435359993,0.6131,2148.3,2148.0,3.2078]
[1741435361001,0.6131,2148.3,2147.9,2.076]
[1741435362697,1.3291549,2148.3,2147.7,3.21478227]
[1741435363194,0.6131,2148.3,2147.7,3.21478227]
[1741435363494,3.2078,2148.7,2147.7,3.21478227]
[1741435363694,0.6047,2148.6,2147.8,1.266]
[1741435364003,1.2677,2148.6,2147.9,2.089]
[1741435364205,0.6481,2148.5,2147.9,2.089]
[1741435364895,0.79310908,2148.6,2148.0,3.2078]
[1741435365094,25.70595106,2149.2,2148.3,3.2078]
[1741435365293,25.70595106,2149.2,2148.0,7.80228843]
[1741435365294,3.2078,2149.0,2148.4,6.5964]
[1741435365489,25.70595106,2149.2,2148.5,2.102]
[1741435365707,25.70595106,2149.2,2148.8,3.2078]
[1741435365896,25.70595106,2149.2,2148.9,2.104]
[1741435366097,25.70595106,2149.2,2148.9,3.3691]
[1741435366299,25.70595106,2149.2,2149.1,3.2078]
[1741435367503,0.6345,2149.6,2149.1,3.2078]
[1741435367801,0.6345,2149.6,2149.2,0.6646]
[1741435368107,0.6345,2149.6,2149.3,2.104]
[1741435368499,0.6345,2149.6,2149.2,0.6646]
[1741435368701,3.2078,2149.4,2149.1,3.2078]
[1741435368899,3.2078,2149.4,2149.2,2.104]
[1741435369101,3.2078,2149.4,2148.9,2.104]
[1741435369802,3.2078,2149.4,2148.9,2.106]
[1741435370901,1.9409,2149.6,2148.9,2.106]
[1741435371494,1.9409,2149.6,2149.0,3.2078]
[1741435373001,1.2784,2149.6,2149.3,3.2078]
[1741435373502,1.2784,2149.6,2149.3,5.3138]
[1741435375397,3.2078,2150.0,2149.3,5.3138]
[1741435375709,0.6249,2149.9,2149.4,0.6653]
[1741435376605,0.6249,2149.9,2149.4,2.101]
[1741435380005,0.6249,2149.9,2149.0,0.6653]
[1741435380006,3.2078,2149.6,2149.0,5.9711]
[1741435380207,1.2811,2149.5,2149.0,5.9711]
[1741435380414,0.6291,2149.4,2149.0,5.9711]
[1741435380605,0.6291,2149.4,2149.0,3.8731]
[1741435380805,0.6291,2149.4,2148.9,5.9537]
[1741435381015,0.6291,2149.4,2148.9,2.1]
[1741435381312,3.2078,2149.3,2148.9,2.1]
[1741435381510,3.2078,2149.0,2148.8,0.00698227]
[1741435381716,1.2347,2148.9,2148.8,0.00698227]
[1741435383511,3.2078,2149.3,2148.8,0.00698227]
[1741435383817,3.2078,2149.6,2148.8,2.11298227]
[1741435384012,3.2078,2149.9,2149.0,3.2078]
[1741435384310,3.2078,2149.9,2149.1,1.9032]
[1741435384510,3.2078,2149.9,2149.2,2.107]
[1741435385515,0.6327,2149.8,2149.2,2.107]
[1741435385718,0.6327,2149.8,2149.3,3.2078]
[1741435387113,1.34642264,2149.8,2149.3,3.2078]
[1741435387312,0.6327,2149.8,2149.3,3.2078]
[1741435387618,3.2078,2149.9,2149.3,3.2078]
[1741435387915,5.28443459,2150.2,2149.3,3.2078]
[1741435388117,4.493,2150.2,2149.3,3.2078]
[1741435388421,3.2078,2151.4,2150.1,3.2078]
[1741435388609,2.924,2151.5,2149.4,5.907]
[1741435388610,3.2078,2151.1,2150.4,3.2078]
[1741435388921,3.8387,2151.1,2150.4,0.00698227]
[1741435389122,1.3033,2151.0,2150.4,0.00698227]
[1741435389624,3.2078,2150.8,2150.4,0.00698227]
[1741435392219,1.3033,2151.0,2150.4,0.00698227]
[1741435392420,1.3033,2151.0,2150.4,3.21478227]
[1741435393017,3.2078,2150.9,2150.4,3.21478227]
[1741435394218,4.673,2152.9,2150.4,3.21478227]
[1741435394219,3.2078,2151.4,2150.7,3.2078]
[1741435394523,1.2737,2151.6,2150.8,2.117]
[1741435394714,0.6636,2151.6,2150.9,0.6297]
[1741435395326,3.2078,2151.1,2150.8,2.116]
[1741435395525,0.6636,2151.0,2150.8,2.116]
[1741435396228,0.6636,2151.0,2150.7,3.2078]
[1741435396424,3.2078,2150.8,2150.4,2.12498227]
[1741435396721,0.636,2150.7,2150.4,0.00698227]
[1741435396920,3.2078,2150.5,2150.4,0.00698227]
[1741435397523,7.2078,2150.5,2150.4,0.00698227]
[1741435397725,7.2078,2150.5,2149.7,3.2078]
[1741435397726,10.04056515,2150.5,2149.7,3.2078]
[1741435398025,3.2078,2150.2,2149.7,3.2078]
[1741435398324,3.2078,2150.2,2149.6,2.119]
[1741435398325,0.6638,2150.1,2149.6,2.119]
[1741435398719,3.2078,2149.9,2149.6,2.119]
[1741435398928,3.2078,2149.9,2149.6,2.12598227]
[1741435399127,3.2078,2149.9,2149.6,0.00698227]
[1741435399323,3.2078,2149.9,2148.8,0.6659]
[1741435399324,3.2078,2149.9,2149.0,2.121]
[1741435399623,3.2078,2149.4,2148.8,5.3298]
[1741435400319,5.3288,2149.7,2148.8,5.3298]
[1741435400521,0.6217,2150.0,2149.1,3.2078]
[1741435400717,3.2078,2149.8,2149.1,3.2078]
[1741435400923,3.2078,2149.8,2149.2,2.122]
[1741435401724,1.50644804,2149.9,2149.2,2.122]
[1741435401725,3.2078,2149.5,2149.2,2.122]
[1741435402222,3.2078,2149.5,2148.9,0.00698227]
[1741435402426,3.2078,2149.5,2148.9,2.12898227]
[1741435403034,3.2078,2149.8,2148.9,2.12898227]
[1741435403220,3.2078,2149.5,2148.9,2.12898227]
[1741435403623,3.2078,2149.8,2148.9,2.12898227]
[1741435404229,3.2078,2149.5,2148.9,2.12898227]
[1741435404432,3.2078,2149.5,2148.9,0.00698227]
[1741435404822,0.6028,2149.4,2148.9,0.00698227]
[1741435405527,3.2078,2149.2,2149.0,0.1375]
[1741435406630,7.2078,2149.2,2149.0,0.1375]
[1741435407033,7.2078,2149.2,2148.9,0.00698227]
[1741435407230,7.2078,2149.2,2148.1,3.2078]
[1741435407431,6.3536,2149.3,2148.1,3.2078]
[1741435407432,3.2078,2148.7,2148.1,3.2078]
[1741435407629,3.2078,2148.4,2147.8,5.3328]
[1741435407831,3.2078,2148.4,2148.1,4.2286]
[1741435408640,5.3348,2148.4,2148.1,4.2286]
[1741435409139,9.3348,2148.4,2148.1,0.80652289]
[1741435409534,0.07638082,2148.3,2148.0,0.00698227]
[1741435409833,3.2078,2148.1,2147.1,1.2557]
[1741435410040,3.2078,2147.6,2147.1,1.2557]
[1741435410235,2.5331,2147.6,2147.1,1.2557]
[1741435410635,4.6631,2147.6,2146.9,15.4]
[1741435410835,4.6631,2147.6,2147.1,0.00698227]
[1741435411735,3.2078,2147.2,2147.1,0.00698227]
[1741435412437,9.3408,2147.2,2146.8,1.1645]
[1741435412637,9.3408,2147.2,2145.7,22.53633707]
[1741435412638,3.2078,2146.9,2146.2,3.2078]
[1741435412841,1.3446,2146.6,2146.2,3.2078]
[1741435413237,2.135,2146.8,2146.2,3.2078]
[1741435413639,2.135,2146.8,2146.2,3.21478227]
[1741435414148,2.135,2146.8,2146.2,4.56688227]
[1741435414642,3.2078,2147.2,2146.5,3.2078]
[1741435414941,2.137,2147.3,2146.5,3.2078]
[1741435415147,2.137,2147.3,2146.2,1.35908227]
[1741435415148,2.137,2147.3,2146.8,3.2078]
[1741435415545,5.3448,2147.3,2146.8,3.2078]
[1741435415750,3.2078,2147.0,2146.2,4.56688227]
[1741435415950,2.144,2146.9,2146.2,4.56688227]
[1741435416446,2.93098227,2147.4,2146.8,3.2078]
[1741435416750,0.00698227,2147.4,2146.8,3.2078]
[1741435417145,0.00698227,2147.4,2147.2,3.2078]
[1741435417750,0.00698227,2147.4,2147.2,5.3568]
[1741435418047,2.15,2148.5,2147.2,9.3568]
[1741435418245,22.5749,2149.1,2148.3,3.2078]
[1741435418246,2.924,2149.1,2148.3,3.2078]
[1741435418444,2.924,2149.2,2148.3,3.2078]
[1741435418642,2.155,2149.4,2148.3,3.2078]
[1741435418643,3.2078,2149.0,2148.3,3.2078]
[1741435418837,3.2078,2149.3,2148.3,3.2078]
[1741435419048,0.00698227,2148.9,2148.4,1.70348227]
[1741435419441,0.00698227,2148.9,2148.6,3.2078]
[1741435421948,0.00698227,2148.9,2148.6,5.3351]
[1741435423046,0.00698227,2148.9,2148.6,7.4881]
[1741435423749,0.00698227,2148.9,2148.6,7.4871]
[1741435425554,0.00698227,2148.9,2148.6,5.3351]
[1741435425743,0.00698227,2148.9,2148.6,7.4861]
[1741435430151,0.00698227,2148.9,2148.6,5.3351]
[1741435431952,0.00698227,2148.9,2148.6,6.7679]
[1741435432553,3.7814,2149.8,2148.6,6.7679]
[1741435432745,2.141,2149.5,2148.9,3.2078]
[1741435432945,5.3488,2149.5,2148.9,3.2078]
[1741435433247,2.141,2149.5,2148.9,3.2078]
[1741435433449,6.1318,2150.2,2149.2,3.2078]
[1741435433651,2.141,2150.1,2149.2,3.2078]
[1741435433950,0.00698227,2149.8,2149.2,3.2078]
[1741435435158,2.14,2149.7,2149.2,3.2078]
[1741435436050,3.28412985,2149.6,2148.9,3.2078]
[1741435436256,3.2078,2149.6,2148.9,3.2078]
[1741435437253,0.00698227,2149.8,2148.9,3.2078]
[1741435437448,2.138,2149.7,2148.9,3.2078]
[1741435437655,3.2078,2149.6,2148.9,3.2078]
[1741435438259,3.2078,2149.3,2148.9,3.2078]
[1741435439056,3.2078,2149.6,2148.9,3.2078]
[1741435440962,3.2078,2149.3,2148.9,3.2078]
[1741435441161,5.3458,2149.3,2148.9,3.2078]
[1741435441955,3.2078,2149.0,2148.6,3.5601]
[1741435442154,2.139,2148.9,2148.6,3.5601]
[1741435442354,3.2078,2148.7,2148.6,3.5601]
[1741435442850,7.28416781,2148.7,2148.6,1.5864]
[1741435443051,7.99699252,2148.7,2148.6,0.5856]
[1741435443353,8.78766824,2148.7,2148.6,0.4907]
[1741435443561,8.78766824,2148.7,2148.4,1.70348227]
[1741435443858,1.57986824,2148.6,2148.4,1.70348227]
[1741435444063,2.22036781,2148.5,2148.4,1.70348227]
[1741435444760,6.22036781,2148.5,2148.4,1.70348227]
[1741435444961,7.72386824,2148.5,2148.4,1.70348227]
[1741435445359,7.72386824,2148.5,2147.5,1.2844]
[1741435445564,3.2078,2147.8,2147.5,1.77512235]
[1741435445761,2.145,2147.9,2147.5,1.77512235]
[1741435446159,2.145,2147.9,2147.6,3.69852235]
[1741435446764,2.145,2147.9,2147.7,0.49072235]
[1741435446957,2.145,2147.9,2147.6,0.49072235]
[1741435447651,2.145,2147.9,2147.5,1.29138227]
[1741435447856,2.145,2147.9,2147.5,1.78210462]
[1741435448561,3.2078,2147.8,2147.5,0.65678227]
[1741435448955,3.2078,2147.8,2147.5,0.00698227]
[1741435449259,7.2078,2147.8,2147.5,0.00698227]
[1741435449461,3.2078,2147.8,2147.5,0.00698227]
[1741435454362,2.142,2147.7,2147.5,0.49770462]
[1741435455961,3.2078,2147.8,2147.5,0.49770462]
[1741435455962,2.141,2147.8,2147.6,0.49072235]
[1741435456359,2.141,2147.8,2147.7,0.49072235]
[1741435456562,2.141,2147.8,2147.5,0.49770462]
[1741435456861,3.2078,2147.7,2147.5,0.00698227]
[1741435458668,2.141,2147.8,2147.5,0.00698227]
[1741435459571,3.2078,2147.7,2147.5,0.00698227]
[1741435459961,2.141,2147.8,2147.5,0.00698227]
[1741435460260,3.2078,2147.7,2147.5,0.00698227]
[1741435460463,3.2078,2147.7,2147.5,1.17108227]
[1741435460768,0.07640662,2147.6,2147.5,1.17108227]
[1741435461167,4.07640662,2147.6,2147.5,1.17108227]
[1741435461365,4.0,2147.6,2147.5,1.17108227]
[1741435461566,4.07640877,2147.6,2147.5,1.17108227]
[1741435461771,0.07640877,2147.6,2147.5,1.17108227]
[1741435462069,4.07640877,2147.6,2147.5,1.17108227]
[1741435462265,0.07640877,2147.6,2147.5,1.17108227]
[1741435462463,0.07640321,2147.6,2147.5,1.17108227]
[1741435462962,3.2078,2147.7,2147.5,1.17108227]
[1741435463166,7.2078,2147.7,2147.5,1.17108227]
[1741435463471,0.07640156,2147.6,2147.5,1.17108227]
[1741435463866,4.07640156,2147.6,2147.5,1.17108227]
[1741435464263,4.79060228,2147.6,2147.5,1.17108227]
[1741435464570,5.58276825,2147.6,2147.5,0.05078693]
[1741435465065,13.17976825,2147.6,2147.5,0.04818693]
[1741435465266,13.17976825,2147.6,2146.6,1.2505]
[1741435465467,3.2078,2146.9,2146.0,3.2078]
[1741435465772,3.2078,2146.6,2146.1,0.54630928]
[1741435465967,2.156,2146.5,2146.2,0.00698227]
[1741435466168,2.156,2146.5,2146.2,0.55329155]
[1741435466373,2.156,2146.5,2146.3,0.54630928]
[1741435466673,2.156,2146.5,2146.2,0.74949072]
[1741435466971,3.2078,2146.3,2146.2,0.74949072]
[1741435467369,7.28425739,2146.3,2146.2,0.74949072]
[1741435467760,3.28425739,2146.3,2146.2,0.74949072]
[1741435467966,3.2078,2146.3,2146.2,0.74949072]
[1741435470967,3.2078,2146.3,2146.2,1.2958]
[1741435471169,2.151,2146.4,2146.2,1.2958]
[1741435471369,2.151,2146.4,2146.3,0.54630928]
[1741435471674,2.152,2146.6,2146.3,0.54630928]
[1741435471874,2.152,2146.6,2146.4,0.54630928]
[1741435472074,2.152,2146.6,2146.3,0.54630928]
[1741435472378,2.152,2146.6,2146.3,1.19590928]
[1741435472577,2.152,2146.6,2146.4,0.54630928]
[1741435473073,2.152,2146.6,2146.5,0.54630928]
[1741435473274,2.152,2146.6,2146.4,0.54630928]
[1741435473577,5.3598,2146.6,2146.2,0.74949072]
[1741435473779,0.07643961,2146.5,2146.2,0.74949072]
[1741435473975,3.2078,2146.3,2146.2,0.74949072]
[1741435474373,7.28425023,2146.3,2146.2,0.74949072]
[1741435476081,8.00042009,2146.3,2146.2,0.74949072]
[1741435476280,7.28425023,2146.3,2146.2,0.74949072]
[1741435477180,3.28425023,2146.3,2146.2,0.74949072]
[1741435477576,2.153,2146.3,2146.2,1.2958]
[1741435477793,21.175,2146.6,2146.2,1.2958]
[1741435477981,21.175,2146.6,2146.3,1.21270928]
[1741435478381,21.175,2146.6,2146.4,0.54630928]
[1741435478680,21.175,2146.6,2146.5,0.54630928]
[1741435478883,21.175,2146.6,2146.4,0.54630928]
[1741435479282,21.175,2146.6,2146.5,0.54630928]
[1741435479483,21.175,2146.6,2146.4,0.54630928]
[1741435480087,21.175,2146.6,2146.5,0.54630928]
[1741435480377,21.175,2146.6,2146.4,0.54630928]
[1741435480782,21.175,2146.6,2146.5,0.54630928]
[1741435480984,21.175,2146.6,2146.4,0.54630928]
[1741435481378,21.175,2146.6,2146.5,0.54630928]
[1741435481680,21.175,2146.6,2146.4,0.54630928]
[1741435482179,21.175,2146.6,2146.5,0.54630928]
[1741435482380,21.175,2146.6,2146.4,0.54630928]
[1741435482577,21.175,2146.6,2146.5,0.54630928]
[1741435482781,21.175,2146.6,2146.4,0.54630928]
[1741435483182,21.175,2146.6,2146.5,0.54630928]
[1741435483381,21.175,2146.6,2146.4,0.54630928]
[1741435483786,21.175,2146.6,2146.5,0.54630928]
[1741435484087,21.175,2146.6,2146.4,0.54630928]
[1741435484475,21.175,2146.6,2146.5,0.54630928]
[1741435484680,21.175,2146.6,2146.4,0.54630928]
[1741435485087,3.29937445,2147.3,2146.5,0.54630928]
[1741435485088,3.2078,2147.0,2146.5,0.54630928]
[1741435485282,3.2078,2147.0,2146.6,0.6295]
[1741435485588,2.146,2146.9,2146.7,0.6643]
[1741435485789,2.146,2146.9,2146.8,0.54630928]
[1741435486689,3.2078,2147.0,2146.8,0.54630928]
[1741435486986,3.2078,2147.0,2146.7,0.6643]
[1741435487188,3.2078,2147.0,2146.8,0.54630928]
[1741435487685,5.35878227,2147.3,2146.9,0.54630928]
[1741435487885,5.35878227,2147.3,2146.8,0.54630928]
[1741435488281,0.79372322,2147.2,2146.9,0.54630928]
[1741435488581,5.35878227,2147.3,2146.7,0.6643]
[1741435488582,3.21478227,2147.3,2146.8,0.54630928]
[1741435488785,3.21478227,2147.3,2146.9,0.6405]
[1741435489079,3.21478227,2147.3,2146.9,1.18680928]
[1741435489280,3.21478227,2147.3,2147.0,0.54630928]
[1741435489681,3.21478227,2147.3,2147.1,0.54630928]
[1741435489880,3.21478227,2147.3,2146.9,0.6405]
[1741435489881,3.21478227,2147.3,2147.0,0.54630928]
[1741435490288,3.21478227,2147.3,2147.1,0.54630928]
[1741435490587,3.21478227,2147.3,2147.0,0.54630928]
[1741435491088,3.21478227,2147.3,2146.9,0.6405]
[1741435491277,3.93258933,2147.3,2147.0,0.54630928]
[1741435492988,3.93258933,2147.3,2147.0,1.29070928]
[1741435494296,4.72894734,2147.3,2147.0,1.29070928]
[1741435494990,0.0764222,2147.2,2147.0,1.29070928]
[1741435495191,0.0764222,2147.2,2147.0,0.7444]
[1741435495192,2.138,2147.1,2147.0,0.7444]
[1741435495390,2.2144222,2147.1,2147.0,0.7444]
[1741435496791,2.138,2147.1,2147.0,1.29070928]
[1741435497192,2.138,2147.1,2147.0,0.7444]
[1741435497387,2.138,2147.1,2147.0,1.29070928]
[1741435497592,0.71780706,2147.2,2147.0,1.29070928]
[1741435497787,5.35378227,2147.3,2147.1,1.16340928]
[1741435497991,5.35378227,2147.3,2147.1,1.76590928]
[1741435498291,5.35378227,2147.3,2147.2,0.54630928]
[1741435498486,0.00698227,2147.3,2147.2,0.54630928]
[1741435502594,0.00698227,2147.3,2147.2,3.75410928]
[1741435503392,3.2078,2147.7,2147.2,3.75410928]
[1741435503599,2.139,2147.8,2147.3,0.54630928]
[1741435503996,2.139,2147.8,2147.4,0.54630928]
[1741435504294,2.139,2147.8,2147.3,0.54630928]
[1741435504493,0.00698227,2147.8,2147.5,3.2078]
[1741435504688,0.00698227,2147.8,2147.6,0.6429]
[1741435504883,0.00698227,2147.8,2147.7,0.6425]
[1741435505090,0.00698227,2147.8,2147.7,1.18880928]
[1741435505995,3.2078,2148.6,2147.7,1.18880928]
[1741435506194,2.21537176,2148.5,2147.8,3.75410928]
[1741435506397,2.139,2148.5,2147.8,3.75410928]
[1741435506599,2.139,2148.5,2147.9,1.19480928]
[1741435506798,2.139,2148.5,2148.0,0.54630928]
[1741435506997,3.2078,2148.6,2148.0,0.54630928]
[1741435507304,0.00698227,2148.5,2148.1,4.35880928]
[1741435507494,0.00698227,2148.5,2148.1,3.8125]
[1741435507800,0.00698227,2148.5,2148.2,0.54630928]
[1741435508195,0.00698227,2148.5,2148.1,3.8125]
[1741435508196,0.00698227,2148.5,2148.3,0.54630928]
[1741435508400,0.00698227,2148.5,2148.2,0.54630928]
[1741435508807,0.00698227,2148.5,2148.3,0.54630928]
[1741435508998,0.00698227,2148.5,2148.2,0.54630928]
[1741435509303,0.00698227,2148.5,2148.3,0.54630928]
[1741435509494,0.00698227,2148.5,2148.2,0.54630928]
[1741435510001,0.00698227,2148.5,2148.3,0.54630928]
[1741435510199,0.00698227,2148.5,2148.2,0.54630928]
[1741435510404,0.00698227,2148.5,2148.4,3.2078]
[1741435510805,0.00698227,2148.5,2148.4,3.75410928]
[1741435511507,3.2078,2149.2,2148.4,7.75410928]
[1741435511706,21.152,2149.1,2148.5,0.54630928]
[1741435511907,3.2078,2149.5,2148.5,0.54630928]
[1741435512099,2.21233664,2149.4,2148.7,3.2078]
[1741435512301,3.2078,2149.5,2148.7,3.2078]
[1741435512499,2.135,2149.3,2148.8,0.54630928]
[1741435512799,2.14198227,2149.3,2148.9,0.00698227]
[1741435512998,2.14198227,2149.3,2148.9,0.55329155]
[1741435513200,2.14198227,2149.3,2149.0,0.54630928]
[1741435513608,2.14198227,2149.3,2149.1,0.54630928]
[1741435513900,2.14198227,2149.3,2149.0,0.54630928]
[1741435514306,3.2078,2149.2,2149.1,0.54630928]
[1741435514502,3.8247,2149.2,2149.0,0.54630928]
[1741435514899,3.8247,2149.2,2149.1,0.54630928]
[1741435515095,3.8247,2149.2,2149.0,0.54630928]
[1741435515505,3.8247,2149.2,2149.1,0.54630928]
[1741435515804,3.8247,2149.2,2149.0,0.54630928]
[1741435516204,3.8247,2149.2,2149.1,0.54630928]
[1741435516506,3.8247,2149.2,2149.0,0.54630928]
[1741435517005,3.8247,2149.2,2149.1,0.54630928]
[1741435517206,3.8247,2149.2,2149.0,0.54630928]
[1741435517601,3.8247,2149.2,2149.1,0.54630928]
[1741435517802,3.8247,2149.2,2148.9,0.00698227]
[1741435518004,0.68484576,2149.1,2148.9,0.55329155]
[1741435518300,0.6085,2149.1,2148.9,0.55329155]
[1741435519202,0.6085,2149.1,2148.9,0.00698227]
[1741435519406,0.07634845,2149.0,2147.9,3.2078]
[1741435519605,3.2078,2148.6,2147.9,5.66010928]
[1741435519815,3.2078,2148.6,2148.0,0.54630928]
[1741435520211,2.128,2148.9,2148.2,3.2078]
[1741435520402,2.128,2148.9,2148.3,0.00698227]
[1741435520602,2.128,2148.9,2148.3,0.55329155]
[1741435520806,2.128,2148.9,2148.4,1.20320928]
[1741435521006,2.128,2148.9,2148.5,0.6173]
[1741435521208,2.128,2148.9,2148.5,1.16360928]
[1741435521405,5.3358,2148.9,2148.6,0.54630928]
[1741435521809,5.3358,2148.9,2148.7,0.54630928]
[1741435522102,5.3358,2148.9,2148.5,0.54630928]